[Event "Titled Tuesday Blitz January 03 Early 2023"]
[White "Mitrovic, Darko R"]
[Black "Hartikainen, Jarmo"]
[WhiteFideId "927023"]
[BlackFideId "503134"]
[WhiteElo "2220"]
[BlackElo "2108"]
[Result "0-1"]
[Round "08"]
[TimeControl "180+2"]
[Date "2023.01.03"]
[WhiteClock "0:00:01"]
[BlackClock "0:00:09"]

1. d4 {[%clk 0:02:52]}  Nf6 {[%clk 0:02:58]} 2. Nf3 {[%clk 0:02:52]}  g6 {[%clk 0:02:58]} 3. g3 {[%clk 0:02:52]}  Bg7 {[%clk 0:02:57]} 4. Bg2 {[%clk 0:02:52]}  O-O {[%clk 0:02:57]} 5. O-O {[%clk 0:02:53]}  d5 {[%clk 0:02:58]} 6. c4 {[%clk 0:02:54]}  c6 {[%clk 0:02:57]} 7. b3 {[%clk 0:02:53]}  Nbd7 {[%clk 0:02:49]} 8. Nc3 {[%clk 0:02:49]}  a6 {[%clk 0:02:41]} 9. Qd3 {[%clk 0:02:33]}  b5 {[%clk 0:02:35]} 10. e4 {[%clk 0:02:27]}  dxe4 {[%clk 0:02:17]} 11. Nxe4 {[%clk 0:02:26]}  Bb7 {[%clk 0:02:13]} 12. Nxf6+ {[%clk 0:02:23]}  Nxf6 {[%clk 0:02:01]} 13. Be3 {[%clk 0:02:20]}  Ng4 {[%clk 0:01:53]} 14. Bf4 {[%clk 0:01:56]}  e5 {[%clk 0:01:47]} 15. Bg5 {[%clk 0:01:44]}  f6 {[%clk 0:01:21]} 16. h3 {[%clk 0:01:01]}  fxg5 {[%clk 0:01:08]} 17. hxg4 {[%clk 0:01:01]}  Re8 {[%clk 0:00:59]} 18. Rae1 {[%clk 0:00:35]}  exd4 {[%clk 0:00:55]} 19. Rxe8+ {[%clk 0:00:34]}  Qxe8 {[%clk 0:00:55]} 20. Nxg5 {[%clk 0:00:33]}  Rd8 {[%clk 0:00:49]} 21. Ne4 {[%clk 0:00:20]}  Bc8 {[%clk 0:00:40]} 22. Re1 {[%clk 0:00:16]}  Qd7 {[%clk 0:00:34]} 23. g5 {[%clk 0:00:13]}  Qf5 {[%clk 0:00:28]} 24. f4 {[%clk 0:00:12]}  h6 {[%clk 0:00:22]} 25. Nf2 {[%clk 0:00:09]}  hxg5 {[%clk 0:00:18]} 26. Be4 {[%clk 0:00:09]}  Qf6 {[%clk 0:00:15]} 27. Bxg6 {[%clk 0:00:07]}  gxf4 {[%clk 0:00:15]} 28. g4 {[%clk 0:00:05]}  f3 {[%clk 0:00:14]} 29. Re8+ {[%clk 0:00:02]}  Rxe8 {[%clk 0:00:13]} 30. Bxe8 {[%clk 0:00:03]}  Qg5 {[%clk 0:00:12]} 31. Qg6 {[%clk 0:00:02]}  Qxg6 {[%clk 0:00:12]} 32. Bxg6 {[%clk 0:00:02]}  Bh6 {[%clk 0:00:11]} 33. Bd3 {[%clk 0:00:02]}  Be3 {[%clk 0:00:11]} 34. Be4 {[%clk 0:00:01]}  Bxg4 {[%clk 0:00:11]} 35. Bxc6 {[%clk 0:00:01]}  bxc4 {[%clk 0:00:10]} 36. bxc4 {[%clk 0:00:01]}  Be6 {[%clk 0:00:09]} 0-1


[Site "https://www.chess.com"]

[Event "Titled Tuesday Blitz January 03 Early 2023"]
[White "Tharushi, T H D Niklesha"]
[Black "Figorito, Nick"]
[WhiteFideId "9918264"]
[BlackFideId "30923689"]
[WhiteElo "1570"]
[BlackElo "2036"]
[Result "0-1"]
[Round "08"]
[TimeControl "180+2"]
[Date "2023.01.03"]
[WhiteClock "0:01:27"]
[BlackClock "0:01:23"]

1. e4 {[%clk 0:03:00]}  e6 {[%clk 0:03:00]} 2. d4 {[%clk 0:02:59]}  d5 {[%clk 0:03:00]} 3. exd5 {[%clk 0:02:58]}  exd5 {[%clk 0:03:01]} 4. c3 {[%clk 0:02:57]}  Bd6 {[%clk 0:03:01]} 5. Bd3 {[%clk 0:02:55]}  Ne7 {[%clk 0:03:01]} 6. Nf3 {[%clk 0:02:54]}  O-O {[%clk 0:03:00]} 7. O-O {[%clk 0:02:54]}  Bf5 {[%clk 0:02:59]} 8. Bxf5 {[%clk 0:02:52]}  Nxf5 {[%clk 0:03:00]} 9. Qd3 {[%clk 0:02:53]}  Nh4 {[%clk 0:02:55]} 10. Nbd2 {[%clk 0:02:42]}  Nxf3+ {[%clk 0:02:51]} 11. Nxf3 {[%clk 0:02:42]}  f6 {[%clk 0:02:50]} 12. Be3 {[%clk 0:02:36]}  c6 {[%clk 0:02:49]} 13. c4 {[%clk 0:02:33]}  dxc4 {[%clk 0:02:47]} 14. Qxc4+ {[%clk 0:02:34]}  Kh8 {[%clk 0:02:47]} 15. Rad1 {[%clk 0:02:26]}  Nd7 {[%clk 0:02:46]} 16. d5 {[%clk 0:02:24]}  Nb6 {[%clk 0:02:46]} 17. Bxb6 {[%clk 0:02:23]}  axb6 {[%clk 0:02:42]} 18. dxc6 {[%clk 0:02:24]}  bxc6 {[%clk 0:02:34]} 19. Qxc6 {[%clk 0:02:23]}  Qc7 {[%clk 0:02:17]} 20. Rxd6 {[%clk 0:02:17]}  Qa7 {[%clk 0:02:16]} 21. Qxb6 {[%clk 0:02:15]}  Qxa2 {[%clk 0:02:15]} 22. Rd7 {[%clk 0:02:13]}  Rab8 {[%clk 0:02:12]} 23. Qc7 {[%clk 0:02:10]}  Rfc8 {[%clk 0:02:07]} 24. Rfd1 {[%clk 0:02:03]}  Rxc7 {[%clk 0:01:53]} 25. Rd8+ {[%clk 0:02:00]}  Qg8 {[%clk 0:01:39]} 26. Rxg8+ {[%clk 0:01:59]}  Kxg8 {[%clk 0:01:40]} 27. Nd4 {[%clk 0:01:54]}  Rd7 {[%clk 0:01:30]} 28. Rd2 {[%clk 0:01:26]}  Rbd8 {[%clk 0:01:26]} 29. Rc2 {[%clk 0:01:26]}  Rxd4 {[%clk 0:01:25]} 30. h3 {[%clk 0:01:26]}  Rd2 {[%clk 0:01:24]} 31. Rc7 {[%clk 0:01:27]}  Rxb2 {[%clk 0:01:23]} 32. Kh2 {[%clk 0:01:27]}  h6 {[%clk 0:01:23]} 0-1


[Site "https://www.chess.com"]

[Event "Titled Tuesday Blitz January 03 Early 2023"]
[White "Nakamura, Hikaru"]
[Black "Duda, Jan-Krzysztof"]
[WhiteFideId "2016192"]
[BlackFideId "1170546"]
[WhiteElo "2775"]
[BlackElo "2724"]
[Result "1/2-1/2"]
[Round "09"]
[TimeControl "180+2"]
[Date "2023.01.03"]
[WhiteClock "0:01:01"]
[BlackClock "0:01:38"]

1. e4 {[%clk 0:03:00]}  e5 {[%clk 0:03:00]} 2. Nf3 {[%clk 0:03:00]}  Nc6 {[%clk 0:03:00]} 3. Bb5 {[%clk 0:03:01]}  Nf6 {[%clk 0:03:01]} 4. d3 {[%clk 0:03:01]}  Bc5 {[%clk 0:03:01]} 5. Bxc6 {[%clk 0:03:02]}  dxc6 {[%clk 0:03:02]} 6. Nbd2 {[%clk 0:03:03]}  Nd7 {[%clk 0:03:01]} 7. O-O {[%clk 0:03:02]}  O-O {[%clk 0:03:01]} 8. Nc4 {[%clk 0:03:02]}  f6 {[%clk 0:03:02]} 9. Kh1 {[%clk 0:03:00]}  Re8 {[%clk 0:03:01]} 10. Qe2 {[%clk 0:02:55]}  Bf8 {[%clk 0:03:01]} 11. g4 {[%clk 0:02:54]}  Nc5 {[%clk 0:03:00]} 12. Rg1 {[%clk 0:02:54]}  Be6 {[%clk 0:02:38]} 13. Ne3 {[%clk 0:02:51]}  Kh8 {[%clk 0:02:38]} 14. g5 {[%clk 0:02:45]}  g6 {[%clk 0:02:23]} 15. gxf6 {[%clk 0:02:34]}  Qxf6 {[%clk 0:02:24]} 16. Ng5 {[%clk 0:02:34]}  Bg7 {[%clk 0:02:15]} 17. Rg3 {[%clk 0:02:11]}  Rf8 {[%clk 0:01:59]} 18. Ng4 {[%clk 0:02:11]}  Qe7 {[%clk 0:01:58]} 19. Be3 {[%clk 0:02:08]}  Bg8 {[%clk 0:01:57]} 20. Bxc5 {[%clk 0:01:52]}  Qxc5 {[%clk 0:01:58]} 21. Rag1 {[%clk 0:01:52]}  Rf4 {[%clk 0:01:52]} 22. Nh3 {[%clk 0:01:42]}  Rf7 {[%clk 0:01:52]} 23. Ng5 {[%clk 0:01:38]}  Rf4 {[%clk 0:01:52]} 24. Nh3 {[%clk 0:01:06]}  Raf8 {[%clk 0:01:51]} 25. c3 {[%clk 0:01:01]}  R4f7 {[%clk 0:01:46]} 26. Ng5 {[%clk 0:01:01]}  Rf4 {[%clk 0:01:46]} 27. Nh3 {[%clk 0:01:01]}  R4f7 {[%clk 0:01:42]} 28. Ng5 {[%clk 0:01:01]}  Rf4 {[%clk 0:01:38]} 29. Nh3 {[%clk 0:01:01]} 1/2-1/2


[Site "https://www.chess.com"]

[Event "Titled Tuesday Blitz January 03 Early 2023"]
[White "Vokhidov, Shamsiddin"]
[Black "Fedoseev, Vladimir"]
[WhiteFideId "14204223"]
[BlackFideId "24130737"]
[WhiteElo "2586"]
[BlackElo "2680"]
[Result "0-1"]
[Round "09"]
[TimeControl "180+2"]
[Date "2023.01.03"]
[WhiteClock "0:00:21"]
[BlackClock "0:00:20"]

1. e4 {[%clk 0:03:00]}  e6 {[%clk 0:02:58]} 2. d4 {[%clk 0:03:01]}  d5 {[%clk 0:02:58]} 3. Nc3 {[%clk 0:03:01]}  Nf6 {[%clk 0:02:57]} 4. Bg5 {[%clk 0:03:01]}  dxe4 {[%clk 0:02:54]} 5. Nxe4 {[%clk 0:03:02]}  Be7 {[%clk 0:02:54]} 6. Nxf6+ {[%clk 0:03:01]}  gxf6 {[%clk 0:02:55]} 7. Be3 {[%clk 0:03:02]}  Nd7 {[%clk 0:02:41]} 8. Nf3 {[%clk 0:03:01]}  c6 {[%clk 0:02:34]} 9. Qd2 {[%clk 0:02:51]}  b5 {[%clk 0:02:32]} 10. g3 {[%clk 0:02:48]}  Nb6 {[%clk 0:02:32]} 11. Bg2 {[%clk 0:02:38]}  Nc4 {[%clk 0:02:28]} 12. Qe2 {[%clk 0:02:38]}  Nxb2 {[%clk 0:02:19]} 13. O-O {[%clk 0:02:38]}  Bd7 {[%clk 0:02:12]} 14. Nd2 {[%clk 0:02:30]}  Rc8 {[%clk 0:02:09]} 15. c4 {[%clk 0:02:28]}  bxc4 {[%clk 0:01:46]} 16. Nxc4 {[%clk 0:02:29]}  Nxc4 {[%clk 0:01:46]} 17. Qxc4 {[%clk 0:02:30]}  Qa5 {[%clk 0:01:46]} 18. Rab1 {[%clk 0:02:28]}  O-O {[%clk 0:01:39]} 19. Rb7 {[%clk 0:02:27]}  Rfd8 {[%clk 0:01:36]} 20. Qe2 {[%clk 0:02:06]}  Kh8 {[%clk 0:01:35]} 21. d5 {[%clk 0:01:51]}  cxd5 {[%clk 0:01:12]} 22. Qh5 {[%clk 0:01:51]}  Rc7 {[%clk 0:01:09]} 23. Be4 {[%clk 0:01:17]}  dxe4 {[%clk 0:00:58]} 24. Qxa5 {[%clk 0:01:16]}  Rxb7 {[%clk 0:00:59]} 25. Rd1 {[%clk 0:01:14]}  Rc8 {[%clk 0:00:43]} 26. Qa6 {[%clk 0:01:06]}  Rcc7 {[%clk 0:00:38]} 27. Bh6 {[%clk 0:00:56]}  Bb5 {[%clk 0:00:36]} 28. Qa5 {[%clk 0:00:41]}  Be2 {[%clk 0:00:36]} 29. Re1 {[%clk 0:00:31]}  Bf3 {[%clk 0:00:31]} 30. Qa4 {[%clk 0:00:29]}  Rb8 {[%clk 0:00:28]} 31. Bf4 {[%clk 0:00:27]}  e5 {[%clk 0:00:27]} 32. Be3 {[%clk 0:00:27]}  Kg7 {[%clk 0:00:26]} 33. h4 {[%clk 0:00:23]}  h5 {[%clk 0:00:24]} 34. Qa5 {[%clk 0:00:22]}  Rcb7 {[%clk 0:00:22]} 35. Qd2 {[%clk 0:00:21]}  Bb4 {[%clk 0:00:20]} 0-1


[Site "https://www.chess.com"]

[Event "Titled Tuesday Blitz January 03 Early 2023"]
[White "Paravyan, David"]
[Black "Ibarra Jerez, Jose Carlos"]
[WhiteFideId "4194985"]
[BlackFideId "2226332"]
[WhiteElo "2601"]
[BlackElo "2563"]
[Result "1-0"]
[Round "09"]
[TimeControl "180+2"]
[Date "2023.01.03"]
[WhiteClock "0:00:04"]
[BlackClock "0:00:01"]

1. e4 {[%clk 0:03:00]}  c5 {[%clk 0:02:59]} 2. Nf3 {[%clk 0:03:01]}  Nc6 {[%clk 0:02:59]} 3. Nc3 {[%clk 0:03:01]}  e5 {[%clk 0:02:50]} 4. Bc4 {[%clk 0:03:00]}  Be7 {[%clk 0:02:50]} 5. d3 {[%clk 0:03:00]}  d6 {[%clk 0:02:49]} 6. a4 {[%clk 0:03:01]}  Nf6 {[%clk 0:02:48]} 7. Bg5 {[%clk 0:03:01]}  Nd7 {[%clk 0:02:45]} 8. Bxe7 {[%clk 0:03:01]}  Nxe7 {[%clk 0:02:44]} 9. Ng5 {[%clk 0:03:00]}  O-O {[%clk 0:02:19]} 10. Qh5 {[%clk 0:02:33]}  Nf6 {[%clk 0:02:15]} 11. Nxf7 {[%clk 0:02:33]}  Qb6 {[%clk 0:01:13]} 12. Nxd6+ {[%clk 0:01:59]}  Kh8 {[%clk 0:01:13]} 13. Nf7+ {[%clk 0:01:38]}  Kg8 {[%clk 0:01:13]} 14. Nxe5+ {[%clk 0:01:28]}  Kh8 {[%clk 0:01:09]} 15. Nf7+ {[%clk 0:01:04]}  Kg8 {[%clk 0:01:09]} 16. Ng5+ {[%clk 0:00:43]}  Kh8 {[%clk 0:01:08]} 17. Qd1 {[%clk 0:00:39]}  Qxb2 {[%clk 0:01:03]} 18. Nb5 {[%clk 0:00:32]}  Qe5 {[%clk 0:00:50]} 19. Nf3 {[%clk 0:00:31]}  Qh5 {[%clk 0:00:48]} 20. Nd6 {[%clk 0:00:25]}  Bg4 {[%clk 0:00:38]} 21. h3 {[%clk 0:00:25]}  Bd7 {[%clk 0:00:32]} 22. Qd2 {[%clk 0:00:20]}  h6 {[%clk 0:00:28]} 23. Qc3 {[%clk 0:00:17]}  Nc6 {[%clk 0:00:23]} 24. O-O-O {[%clk 0:00:15]}  Qg6 {[%clk 0:00:17]} 25. Kb2 {[%clk 0:00:12]}  Nh5 {[%clk 0:00:14]} 26. e5 {[%clk 0:00:08]}  Qxg2 {[%clk 0:00:12]} 27. Bd5 {[%clk 0:00:07]}  Rxf3 {[%clk 0:00:08]} 28. Rhg1 {[%clk 0:00:07]}  Qxf2 {[%clk 0:00:08]} 29. e6 {[%clk 0:00:08]}  Be8 {[%clk 0:00:07]} 30. Bxf3 {[%clk 0:00:06]}  Qxf3 {[%clk 0:00:07]} 31. Rdf1 {[%clk 0:00:06]}  Qd5 {[%clk 0:00:06]} 32. Rf8+ {[%clk 0:00:07]}  Kh7 {[%clk 0:00:07]} 33. Nxe8 {[%clk 0:00:07]}  Nd4 {[%clk 0:00:05]} 34. Qc4 {[%clk 0:00:05]}  Qc6 {[%clk 0:00:04]} 35. Nf6+ {[%clk 0:00:03]}  Nxf6 {[%clk 0:00:04]} 36. Rxa8 {[%clk 0:00:04]}  Qb6+ {[%clk 0:00:04]} 37. Ka2 {[%clk 0:00:03]}  Qc6 {[%clk 0:00:03]} 38. e7 {[%clk 0:00:03]}  b5 {[%clk 0:00:03]} 39. axb5 {[%clk 0:00:03]}  Qxa8 {[%clk 0:00:04]} 40. Re1 {[%clk 0:00:04]}  Qe8 {[%clk 0:00:04]} 41. Qxc5 {[%clk 0:00:04]}  Nxb5 {[%clk 0:00:04]} 42. Kb2 {[%clk 0:00:03]}  a6 {[%clk 0:00:04]} 43. c4 {[%clk 0:00:04]}  Qh5 {[%clk 0:00:02]} 44. Qxh5 {[%clk 0:00:03]}  Nxh5 {[%clk 0:00:01]} 45. e8=Q {[%clk 0:00:04]}  Nf6 {[%clk 0:00:01]} 46. cxb5 {[%clk 0:00:04]} 1-0


[Site "https://www.chess.com"]

[Event "Titled Tuesday Blitz January 03 Early 2023"]
[White "Kopylov, Alexander A."]
[Black "Bortnyk, Olexandr"]
[WhiteFideId "4164857"]
[BlackFideId "14120828"]
[WhiteElo "2397"]
[BlackElo "2605"]
[Result "0-1"]
[Round "09"]
[TimeControl "180+2"]
[Date "2023.01.03"]
[WhiteClock "0:00:23"]
[BlackClock "0:01:05"]

1. e4 {[%clk 0:02:59]}  Nf6 {[%clk 0:03:00]} 2. d3 {[%clk 0:02:56]}  d5 {[%clk 0:02:57]} 3. Nd2 {[%clk 0:02:56]}  e5 {[%clk 0:02:57]} 4. Ngf3 {[%clk 0:02:56]}  Nc6 {[%clk 0:02:57]} 5. Be2 {[%clk 0:02:56]}  Be7 {[%clk 0:02:58]} 6. O-O {[%clk 0:02:56]}  O-O {[%clk 0:02:58]} 7. c3 {[%clk 0:02:57]}  h6 {[%clk 0:02:59]} 8. b4 {[%clk 0:02:56]}  a6 {[%clk 0:02:59]} 9. a3 {[%clk 0:02:55]}  Be6 {[%clk 0:02:58]} 10. Bb2 {[%clk 0:02:55]}  Re8 {[%clk 0:02:48]} 11. Re1 {[%clk 0:02:55]}  dxe4 {[%clk 0:02:44]} 12. dxe4 {[%clk 0:02:54]}  Nd7 {[%clk 0:02:44]} 13. Bc4 {[%clk 0:02:52]}  Bg5 {[%clk 0:02:41]} 14. Bxe6 {[%clk 0:02:51]}  Rxe6 {[%clk 0:02:42]} 15. Nc4 {[%clk 0:02:51]}  Bf6 {[%clk 0:02:28]} 16. Qd5 {[%clk 0:02:47]}  Nf8 {[%clk 0:02:20]} 17. Rad1 {[%clk 0:02:46]}  Qe7 {[%clk 0:02:18]} 18. Ne3 {[%clk 0:02:43]}  Rd8 {[%clk 0:02:17]} 19. Qc4 {[%clk 0:02:42]}  Rxd1 {[%clk 0:02:11]} 20. Rxd1 {[%clk 0:02:43]}  Rd6 {[%clk 0:02:12]} 21. Nd5 {[%clk 0:02:39]}  Qd8 {[%clk 0:02:09]} 22. Re1 {[%clk 0:02:29]}  Ne6 {[%clk 0:02:00]} 23. g3 {[%clk 0:02:24]}  Ng5 {[%clk 0:01:50]} 24. Nh4 {[%clk 0:02:12]}  Nxe4 {[%clk 0:01:43]} 25. Rxe4 {[%clk 0:01:44]}  Rxd5 {[%clk 0:01:38]} 26. Nf5 {[%clk 0:01:42]}  Rd1+ {[%clk 0:01:23]} 27. Kg2 {[%clk 0:01:42]}  Qd7 {[%clk 0:01:22]} 28. Ne3 {[%clk 0:01:35]}  Rb1 {[%clk 0:01:21]} 29. Qe2 {[%clk 0:01:32]}  Bg5 {[%clk 0:01:21]} 30. Qc2 {[%clk 0:01:31]}  Re1 {[%clk 0:01:17]} 31. Bc1 {[%clk 0:01:18]}  f5 {[%clk 0:01:13]} 32. Nxf5 {[%clk 0:00:26]}  Rxc1 {[%clk 0:01:08]} 33. Qa2+ {[%clk 0:00:23]}  Qf7 {[%clk 0:01:05]} 0-1


[Site "https://www.chess.com"]

[Event "Titled Tuesday Blitz January 03 Early 2023"]
[White "Avila Pavas, Santiago"]
[Black "Pranav, V"]
[WhiteFideId "4437128"]
[BlackFideId "25060783"]
[WhiteElo "2522"]
[BlackElo "2597"]
[Result "0-1"]
[Round "09"]
[TimeControl "180+2"]
[Date "2023.01.03"]
[WhiteClock "0:00:15"]
[BlackClock "0:01:57"]

1. d4 {[%clk 0:03:00]}  Nf6 {[%clk 0:02:59]} 2. Nf3 {[%clk 0:03:00]}  b6 {[%clk 0:02:58]} 3. Bf4 {[%clk 0:03:00]}  Bb7 {[%clk 0:02:58]} 4. Nbd2 {[%clk 0:03:00]}  c5 {[%clk 0:02:58]} 5. e3 {[%clk 0:03:01]}  cxd4 {[%clk 0:02:59]} 6. exd4 {[%clk 0:03:01]}  g6 {[%clk 0:03:00]} 7. c3 {[%clk 0:03:02]}  Bg7 {[%clk 0:03:00]} 8. Be2 {[%clk 0:03:02]}  O-O {[%clk 0:03:01]} 9. O-O {[%clk 0:03:02]}  d6 {[%clk 0:03:01]} 10. h3 {[%clk 0:03:03]}  Nbd7 {[%clk 0:03:02]} 11. Re1 {[%clk 0:03:04]}  Re8 {[%clk 0:03:02]} 12. Bh2 {[%clk 0:03:04]}  a6 {[%clk 0:03:02]} 13. a4 {[%clk 0:03:04]}  Nf8 {[%clk 0:03:00]} 14. Qb3 {[%clk 0:03:03]}  Qc7 {[%clk 0:03:00]} 15. Bc4 {[%clk 0:03:02]}  e6 {[%clk 0:02:58]} 16. Bf1 {[%clk 0:02:57]}  Red8 {[%clk 0:02:58]} 17. Nc4 {[%clk 0:02:34]}  Bxf3 {[%clk 0:02:57]} 18. gxf3 {[%clk 0:02:35]}  Rab8 {[%clk 0:02:56]} 19. Qa3 {[%clk 0:02:33]}  Ne8 {[%clk 0:02:54]} 20. Ne3 {[%clk 0:02:25]}  Qb7 {[%clk 0:02:51]} 21. Bg2 {[%clk 0:02:19]}  Rbc8 {[%clk 0:02:51]} 22. Qb3 {[%clk 0:02:06]}  d5 {[%clk 0:02:50]} 23. Bf1 {[%clk 0:02:04]}  Nd7 {[%clk 0:02:49]} 24. Ng4 {[%clk 0:01:59]}  h5 {[%clk 0:02:48]} 25. Ne3 {[%clk 0:01:54]}  Bf8 {[%clk 0:02:46]} 26. c4 {[%clk 0:01:51]}  dxc4 {[%clk 0:02:40]} 27. Nxc4 {[%clk 0:01:04]}  Qd5 {[%clk 0:02:36]} 28. Qd3 {[%clk 0:01:04]}  Bg7 {[%clk 0:02:30]} 29. Rad1 {[%clk 0:01:03]}  Nc5 {[%clk 0:02:23]} 30. Qe3 {[%clk 0:00:54]}  Nxa4 {[%clk 0:02:18]} 31. b3 {[%clk 0:00:54]}  b5 {[%clk 0:02:15]} 32. Ne5 {[%clk 0:00:54]}  Nc3 {[%clk 0:02:13]} 33. Rc1 {[%clk 0:00:54]}  Qxd4 {[%clk 0:02:12]} 34. Qg5 {[%clk 0:00:36]}  Rd5 {[%clk 0:02:06]} 35. f4 {[%clk 0:00:29]}  Rdc5 {[%clk 0:02:02]} 36. Qe7 {[%clk 0:00:21]}  Bxe5 {[%clk 0:02:00]} 37. fxe5 {[%clk 0:00:20]}  Ne2+ {[%clk 0:01:58]} 38. Rxe2 {[%clk 0:00:20]}  Rxc1 {[%clk 0:01:58]} 39. Kg2 {[%clk 0:00:15]}  Qd1 {[%clk 0:01:57]} 0-1


[Site "https://www.chess.com"]

[Event "Titled Tuesday Blitz January 03 Early 2023"]
[White "Bluebaum, Matthias"]
[Black "Putnam, Liam"]
[WhiteFideId "24651516"]
[BlackFideId "30938279"]
[WhiteElo "2669"]
[BlackElo "2285"]
[Result "0-1"]
[Round "09"]
[TimeControl "180+2"]
[Date "2023.01.03"]
[WhiteClock "0:00:06"]
[BlackClock "0:00:17"]

1. d4 {[%clk 0:03:00]}  Nf6 {[%clk 0:02:58]} 2. c4 {[%clk 0:03:01]}  e6 {[%clk 0:02:59]} 3. Nc3 {[%clk 0:03:01]}  Nc6 {[%clk 0:02:42]} 4. d5 {[%clk 0:02:55]}  Ne5 {[%clk 0:02:39]} 5. e4 {[%clk 0:02:44]}  Bb4 {[%clk 0:02:39]} 6. Qc2 {[%clk 0:02:44]}  exd5 {[%clk 0:02:35]} 7. cxd5 {[%clk 0:02:43]}  O-O {[%clk 0:02:35]} 8. Ne2 {[%clk 0:02:36]}  Re8 {[%clk 0:02:33]} 9. a3 {[%clk 0:02:25]}  Bc5 {[%clk 0:02:28]} 10. b4 {[%clk 0:02:21]}  Bb6 {[%clk 0:02:27]} 11. Na4 {[%clk 0:02:21]}  d6 {[%clk 0:01:41]} 12. Nxb6 {[%clk 0:02:20]}  axb6 {[%clk 0:01:42]} 13. Ng3 {[%clk 0:02:01]}  Nxd5 {[%clk 0:01:42]} 14. Bb2 {[%clk 0:01:43]}  Nf4 {[%clk 0:01:41]} 15. O-O-O {[%clk 0:01:30]}  Qf6 {[%clk 0:01:30]} 16. Kb1 {[%clk 0:01:30]}  c6 {[%clk 0:01:18]} 17. Nf5 {[%clk 0:01:30]}  Bxf5 {[%clk 0:00:53]} 18. exf5 {[%clk 0:01:30]}  Nd5 {[%clk 0:00:53]} 19. g3 {[%clk 0:01:28]}  Qe7 {[%clk 0:00:46]} 20. Bg2 {[%clk 0:01:28]}  Nc7 {[%clk 0:00:40]} 21. Rhe1 {[%clk 0:01:28]}  Qf8 {[%clk 0:00:37]} 22. f4 {[%clk 0:01:05]}  Ng4 {[%clk 0:00:24]} 23. Qd2 {[%clk 0:00:50]}  d5 {[%clk 0:00:21]} 24. h3 {[%clk 0:00:37]}  Nf6 {[%clk 0:00:22]} 25. Re5 {[%clk 0:00:37]}  Nb5 {[%clk 0:00:22]} 26. Qd3 {[%clk 0:00:37]}  Nd7 {[%clk 0:00:22]} 27. Rxe8 {[%clk 0:00:35]}  Qxe8 {[%clk 0:00:23]} 28. g4 {[%clk 0:00:28]}  Nf6 {[%clk 0:00:23]} 29. g5 {[%clk 0:00:19]}  Ne4 {[%clk 0:00:24]} 30. Qb3 {[%clk 0:00:17]}  Qd7 {[%clk 0:00:21]} 31. a4 {[%clk 0:00:17]}  Qxf5 {[%clk 0:00:20]} 32. Ka1 {[%clk 0:00:11]}  Nbd6 {[%clk 0:00:17]} 33. Be5 {[%clk 0:00:11]}  Nc4 {[%clk 0:00:16]} 34. Bd4 {[%clk 0:00:08]}  b5 {[%clk 0:00:17]} 35. a5 {[%clk 0:00:08]}  b6 {[%clk 0:00:17]} 36. Qd3 {[%clk 0:00:02]}  bxa5 {[%clk 0:00:16]} 37. bxa5 {[%clk 0:00:03]}  Rxa5+ {[%clk 0:00:17]} 38. Kb1 {[%clk 0:00:04]}  Ned2+ {[%clk 0:00:17]} 39. Kc2 {[%clk 0:00:02]}  Ra2+ {[%clk 0:00:17]} 40. Kc3 {[%clk 0:00:02]}  b4+ {[%clk 0:00:17]} 41. Kxb4 {[%clk 0:00:03]}  Qxd3 {[%clk 0:00:17]} 42. Re1 {[%clk 0:00:04]}  Ne4 {[%clk 0:00:16]} 43. Bxe4 {[%clk 0:00:03]}  dxe4 {[%clk 0:00:16]} 44. Kc5 {[%clk 0:00:04]}  Ra5+ {[%clk 0:00:16]} 45. Kxc6 {[%clk 0:00:04]}  Qxd4 {[%clk 0:00:16]} 46. Rd1 {[%clk 0:00:04]}  Rc5+ {[%clk 0:00:16]} 47. Kb7 {[%clk 0:00:05]}  Qxd1 {[%clk 0:00:17]} 48. Ka8 {[%clk 0:00:05]}  Qd7 {[%clk 0:00:16]} 49. Kb8 {[%clk 0:00:06]}  Rc8# {[%clk 0:00:17]} 0-1


[Site "https://www.chess.com"]

[Event "Titled Tuesday Blitz January 03 Early 2023"]
[White "Shimanov, Aleksandr"]
[Black "Tan, Zhongyi"]
[WhiteFideId "4198603"]
[BlackFideId "8603642"]
[WhiteElo "2581"]
[BlackElo "2517"]
[Result "1-0"]
[Round "09"]
[TimeControl "180+2"]
[Date "2023.01.03"]
[WhiteClock "0:00:08"]
[BlackClock "0:00:02"]

1. e4 {[%clk 0:02:57]}  c5 {[%clk 0:02:58]} 2. Nf3 {[%clk 0:02:57]}  d6 {[%clk 0:02:56]} 3. d4 {[%clk 0:02:57]}  cxd4 {[%clk 0:02:55]} 4. Qxd4 {[%clk 0:02:58]}  Nc6 {[%clk 0:02:55]} 5. Bb5 {[%clk 0:02:55]}  Bd7 {[%clk 0:02:55]} 6. Qd3 {[%clk 0:02:55]}  g6 {[%clk 0:02:47]} 7. c4 {[%clk 0:02:55]}  Bg7 {[%clk 0:02:46]} 8. Nc3 {[%clk 0:02:55]}  Nf6 {[%clk 0:02:45]} 9. O-O {[%clk 0:02:55]}  O-O {[%clk 0:02:43]} 10. h3 {[%clk 0:02:56]}  Rc8 {[%clk 0:02:35]} 11. Be3 {[%clk 0:02:55]}  a6 {[%clk 0:02:34]} 12. Bxc6 {[%clk 0:02:55]}  Bxc6 {[%clk 0:02:32]} 13. Nd4 {[%clk 0:02:55]}  Nd7 {[%clk 0:02:31]} 14. Rac1 {[%clk 0:02:41]}  Ne5 {[%clk 0:02:04]} 15. Qe2 {[%clk 0:02:41]}  Bd7 {[%clk 0:01:58]} 16. b3 {[%clk 0:02:40]}  Qa5 {[%clk 0:01:57]} 17. Qd2 {[%clk 0:02:27]}  Rfe8 {[%clk 0:01:53]} 18. Rfd1 {[%clk 0:02:20]}  Nc6 {[%clk 0:01:46]} 19. Nxc6 {[%clk 0:02:14]}  Bxc6 {[%clk 0:01:46]} 20. Bd4 {[%clk 0:02:14]}  b5 {[%clk 0:01:06]} 21. Bxg7 {[%clk 0:02:10]}  Kxg7 {[%clk 0:01:07]} 22. Qb2 {[%clk 0:01:54]}  bxc4 {[%clk 0:00:49]} 23. Nd5+ {[%clk 0:01:29]}  f6 {[%clk 0:00:47]} 24. b4 {[%clk 0:01:25]}  Qb5 {[%clk 0:00:34]} 25. Nc3 {[%clk 0:00:50]}  Qb7 {[%clk 0:00:33]} 26. Re1 {[%clk 0:00:50]}  Rb8 {[%clk 0:00:30]} 27. Rb1 {[%clk 0:00:50]}  Qd7 {[%clk 0:00:25]} 28. Qd2 {[%clk 0:00:50]}  Rec8 {[%clk 0:00:23]} 29. f4 {[%clk 0:00:49]}  a5 {[%clk 0:00:18]} 30. a3 {[%clk 0:00:43]}  axb4 {[%clk 0:00:17]} 31. axb4 {[%clk 0:00:44]}  Ba4 {[%clk 0:00:16]} 32. Kh2 {[%clk 0:00:41]}  Bb3 {[%clk 0:00:17]} 33. e5 {[%clk 0:00:41]}  Rxb4 {[%clk 0:00:16]} 34. exf6+ {[%clk 0:00:42]}  exf6 {[%clk 0:00:16]} 35. Nd5 {[%clk 0:00:42]}  Rb7 {[%clk 0:00:15]} 36. Re3 {[%clk 0:00:30]}  Qf7 {[%clk 0:00:14]} 37. Rbe1 {[%clk 0:00:30]}  Kh8 {[%clk 0:00:08]} 38. Qd4 {[%clk 0:00:28]}  c3 {[%clk 0:00:05]} 39. Nxf6 {[%clk 0:00:24]}  Rc4 {[%clk 0:00:02]} 40. Re8+ {[%clk 0:00:23]}  Kg7 {[%clk 0:00:02]} 41. Qxd6 {[%clk 0:00:11]}  Qxf6 {[%clk 0:00:02]} 42. Rg8+ {[%clk 0:00:11]}  Kxg8 {[%clk 0:00:02]} 43. Qxf6 {[%clk 0:00:11]}  Rc8 {[%clk 0:00:02]} 44. Re3 {[%clk 0:00:08]}  c2 {[%clk 0:00:02]} 45. Rxb3 {[%clk 0:00:08]}  Rxb3 {[%clk 0:00:02]} 46. Qe6+ {[%clk 0:00:08]}  Kg7 {[%clk 0:00:03]} 47. Qxc8 {[%clk 0:00:08]}  Rb2 {[%clk 0:00:02]} 48. Qc3+ {[%clk 0:00:08]} 1-0


[Site "https://www.chess.com"]